[Event "ChessKid Cup Div-I 2023"]
[Site "Online"]
[Date "2023.05.23"]
[Round "51.1"]
[White "Nakamura, Hikaru"]
[Black "Firouzja, Alireza"]
[Result "1/2-1/2"]
[ECO "B44"]
[WhiteElo "2775"]
[BlackElo "2785"]
[Annotator "TA"]
[PlyCount "79"]
[EventDate "2023.05.21"]
[EventType "k.o."]
[EventCountry "NET"]
[SourceTitle "playchess.com"]
[Source "ChessBase"]
[SourceQuality "1"]
[TimeControl "900+3"]

{[%evp 12,79,10,0,12,12,6,14,23,0,5,0,0,-19,-27,-18,0,-7,0,-19,0,-19,-14,-21,-21,-34,-30,-30,0,-10,-6,-24,0,0,0,0,0,0,0,0,0,0,0,0,0,0,0,0,0,-77,-77,-77,-81,-80,0,-187,-164,-172,-52,-39,0,0,0,-22,0,0,0,-21,0,0]} 1. e4 {[%emt 0:00:05]} e6 {[%emt 0:00:04]} 2. c4 {[%emt 0:00:29]} c5 {[%emt 0:01:05]} 3. Nf3 {[%emt 0:00:17]} Nc6 {[%emt 0:00:02]} 4. d4 {[%emt 0:00:01]} cxd4 {[%emt 0:00:01]} 5. Nxd4 {[%emt 0:00:00]} Nf6 {[%emt 0:00:00]} 6. Nxc6 {[%emt 0:00:22]} bxc6 {[%emt 0:00:06]} 7. Nc3 {[%emt 0:00:04]} e5 {[%emt 0:00:09] B44: Sicilian: Taimanov: 5 Nb5.} 8. Qd3 $1 {[%emt 0:00:42][%mdl 4] now scores much better than the old 8.Bd3.} Bc5 {[%emt 0:00:48]} 9. Be3 {[%emt 0:00:13] [#]} Bxe3 $146 {[%emt 0:01:19]} ({Predecessor:} 9... Qb6 10. Bxc5 Qxc5 11. Be2 O-O 12. O-O Rd8 13. Rfd1 Rb8 14. a3 Qe7 15. b4 a5 {1-0 Thybo,J (2559)-Bjerre,J (2611) DEN-ch Svendborg 2022 (3)}) 10. Qxe3 {[%emt 0:00:00]} Qb6 {[%emt 0:00:01]} 11. Qxb6 {[%emt 0:02:00]} axb6 {[%emt 0:00:01]} 12. O-O-O {[%emt 0:00:01]} Ke7 {[%emt 0:00:07]} 13. Be2 {[%emt 0:00:12]} d6 {[%emt 0:00:04]} 14. Rd2 {[%emt 0:00:02]} Be6 {[%emt 0:00:21][%cal Ob6b5]} 15. b3 {[%emt 0:02:09] Inhibits b5.} (15. Rhd1 $5 {[%cal Rd2d6]}) 15... g5 {[%emt 0:00:35][%cal Bg7g5,Bg5g4][%mdl 32]} 16. Kb2 {[%emt 0:00:42]} g4 {[%emt 0:00:05]} 17. Bd3 {[%emt 0:00:06]} h5 {[%emt 0:00:16][%cal Bh7h5,Bh5h4,Bh4g3][%mdl 32]} 18. Nd1 {[%emt 0:00:04]} h4 {[%emt 0:01:44]} 19. Ne3 {[%emt 0:00:06]} g3 {[%emt 0:00:05]} 20. f3 {[%emt 0:01:42]} Nh5 {[%emt 0:02:41]} 21. hxg3 {[%emt 0:00:48]} hxg3 {[%emt 0:00:23]} 22. Rhd1 {[%emt 0:00:01]} Nf4 {[%emt 0:00:10]} 23. Bf1 {[%emt 0:00:02]} Rad8 {[%emt 0:00:30]} 24. b4 {[%emt 0:00:10]} Rd7 {[%emt 0:00:25]} 25. a3 {[%emt 0:00:24]} Rhd8 {[%emt 0:00:45]} 26. Re1 {[%emt 0:01:04]} f6 {[%emt 0:00:45]} 27. Red1 {[%emt 0:00:25]} d5 {[%emt 0:00:45]} 28. cxd5 {[%emt 0:00:38]} cxd5 {[%emt 0:00:00]} 29. exd5 {[%emt 0:00:01]} Nxd5 {[%emt 0:00:03]} 30. Nc4 {[%emt 0:02:08]} (30. Nxd5+ $11 Rxd5 31. Rxd5 Rxd5 32. Ra1) 30... Rh8 {[%emt 0:00:39] [#] aiming for ...b5.} 31. a4 {[%emt 0:00:27]} Ra8 {[%emt 0:01:03]} ({Much worse is} 31... Nxb4 32. Rxd7+ Bxd7 33. Nxb6 $11) 32. Ra1 {[%emt 0:00:35]} Rc7 {[%emt 0:00:18]} ({Reject} 32... Nxb4 33. Rxd7+ Bxd7 34. Nxb6 $11) (32... Rc8 $17 {Threatens to win with ...Rdc7.} 33. Rad1 Rcc7) 33. a5 $2 {[%emt 0:00:18]} (33. Rxd5 $1 $11 Bxd5 34. Nxb6) 33... bxa5 $19 {[%emt 0:00:12]} ({Inferior is} 33... Nxb4 34. axb6 Rxa1 35. Kxa1 $17) 34. Rxa5 {[%emt 0:00:01]} Rxa5 {[%emt 0:00:35]} ({Black should try} 34... Rb8 $19 35. b5 Rcb7) 35. bxa5 $15 {[%emt 0:00:00]} Nf4 {[%emt 0:00:01]} (35... Rc5 $5 {[%cal Rd5f4]}) 36. Ne3 {[%emt 0:00:08] The position is equal.} Rb7+ {[%emt 0:00:15]} 37. Kc2 {[%emt 0:00:05]} Rc7+ {[%emt 0:00:09]} (37... Ra7 $5 {[%cal Ra7a5]}) 38. Kb2 {[%emt 0:00:05]} Rb7+ {[%emt 0:00:04]} 39. Kc2 {[%emt 0:00:01]} Rc7+ {[%emt 0:00:04]} (39... Ra7 $5 {[%cal Ra7a5]}) 40. Kb2 {[%emt 0:00:07] Weighted Error Value: White=0.20 (precise) /Black=0.14 (very precise)} 1/2-1/2

[Event "ChessKid Cup Div-I 2023"]
[Site "Online"]
[Date "2023.05.23"]
[Round "51.1"]
[White "Moussard, Jules"]
[Black "Shimanov, Aleksandr"]
[Result "1-0"]
[ECO "C02"]
[WhiteElo "2644"]
[BlackElo "2581"]
[Annotator "TA"]
[PlyCount "87"]
[EventDate "2023.05.21"]
[EventType "k.o."]
[EventCountry "NET"]
[SourceTitle "playchess.com"]
[Source "ChessBase"]
[SourceQuality "1"]
[TimeControl "900+3"]

{[%evp 13,87,0,0,0,0,0,0,0,0,-29,-25,-33,-7,-12,24,33,25,15,0,0,0,0,8,-3,7,-38,-31,-31,-18,-45,-24,-93,-92,-102,-93,-75,-63,-107,-95,-112,-72,-82,-89,-98,-91,-91,-91,-121,-121,-121,0,-128,-121,-137,-136,-187,-90,-90,-91,-93,-76,-75,-50,-52,-27,-32,0,0,17,17,17,23,29983,29980,29978,29979]} 1. e4 {[%emt 0:00:03]} e6 {[%emt 0:00:07]} 2. d4 {[%emt 0:00:02]} d5 {[%emt 0:00:02]} 3. e5 {[%emt 0:00:01]} c5 {[%emt 0:00:05]} 4. c3 {[%emt 0:00:01]} Nc6 {[%emt 0:00:04]} 5. Nf3 {[%emt 0:00:02]} Nge7 {[%emt 0:00:05][%cal Bg8e7,Be7f5,Bf5h4,Bh4f3][%mdl 32]} 6. Be2 {[%emt 0:00:57]} Nf5 {[%emt 0:00:12]} 7. dxc5 {[%emt 0:01:05]} Bxc5 {[%emt 0:00:01]} 8. O-O {[%emt 0:00:01] C02: French: Advance Variation.} Nh4 {[%emt 0:01:16]} 9. Bf4 {[%emt 0:00:53]} Nxf3+ {[%emt 0:01:28]} 10. Bxf3 {[%emt 0:00:02][%cal Oc3c4] The position is equal.} O-O {[%emt 0:00:00] [#]} 11. Bg3 $146 {[%emt 0:00:58]} ({Predecessor:} 11. b4 Bb6 12. Bg3 a5 13. b5 Ne7 14. a4 Nf5 15. Ra2 Nxg3 16. hxg3 Qg5 17. Re2 {0-1 Kosanski,S (2390)-Savchenko,S (2480) Belgrade GMA op 1988}) 11... b5 {[%emt 0:00:51]} 12. Nd2 {[%emt 0:00:50]} Bd7 {[%emt 0:00:39]} 13. Be2 {[%emt 0:00:22]} Rb8 {[%emt 0:00:19]} 14. Bd3 {[%emt 0:00:11]} b4 {[%emt 0:01:30]} 15. Nb3 {[%emt 0:01:09]} (15. c4 $5) 15... Be7 {[%emt 0:00:14]} 16. c4 {[%emt 0:01:03]} dxc4 $1 {[%emt 0:00:47]} 17. Bxc4 {[%emt 0:00:00]} a5 {[%emt 0:00:12][%cal Od8b6]} 18. Bd3 {[%emt 0:00:04]} (18. Qg4 {with more complications.} Qb6 19. Rfd1 Rbd8 20. Bf4) 18... Qb6 {[%emt 0:01:21]} 19. Qe2 {[%emt 0:01:26]} Rfd8 {[%emt 0:00:22]} ({Much worse is} 19... g6 20. Rac1 $11) 20. Rfd1 {[%emt 0:01:06]} Be8 {[%emt 0:00:13]} 21. Nd2 {[%emt 0:00:20]} Nd4 $1 {[%emt 0:00:28]} 22. Qg4 {[%emt 0:00:07]} (22. Qe4 $11 Nf5 23. Nc4) 22... Bb5 $17 {[%emt 0:00:30]} 23. Nc4 {[%emt 0:00:30]} Bxc4 {[%emt 0:00:08]} 24. Bxc4 {[%emt 0:00:00]} Nf5 {[%emt 0:00:16]} 25. Bd3 {[%emt 0:01:07]} Rd4 {[%emt 0:00:26]} 26. Qe2 {[%emt 0:00:11]} Nxg3 {[%emt 0:00:20]} 27. hxg3 {[%emt 0:00:01] White is weak on the dark squares} Rbd8 {[%emt 0:00:03]} 28. Bc2 {[%emt 0:01:01]} Bc5 {[%emt 0:00:28]} 29. Rxd4 {[%emt 0:00:30]} Bxd4 {[%emt 0:00:00]} 30. Rd1 {[%emt 0:00:24]} Bxb2 {[%emt 0:01:43]} 31. Kh2 {[%emt 0:00:17]} Bd4 {[%emt 0:00:22] Dodges Qe3} (31... g6 $17 32. Rxd8+ Qxd8 33. Bxg6 Qd4) 32. f4 {[%emt 0:00:06]} (32. Qe4 $11) 32... g6 {[%emt 0:00:02]} 33. g4 {[%emt 0:00:23]} Rc8 {[%emt 0:00:19]} 34. Rd3 {[%emt 0:00:09]} (34. Bb3 $17 {was necessary.}) 34... Qc5 {[%emt 0:00:32]} (34... Be3 $19 {is more deadly.} 35. g3 (35. Rxe3 $2 {is the wrong capture.} Rxc2 {[%mdl 64] Deflection} 36. Qxc2 Qxe3 $19) 35... Bg1+ 36. Kh1 Qc6+ 37. Kxg1 Qxc2 38. Qxc2 Rxc2) 35. Bb3 {[%emt 0:00:05]} Rd8 {[%emt 0:00:24]} 36. Kh3 {[%emt 0:00:03]} Qc6 {[%emt 0:00:10]} 37. Qf3 {[%emt 0:00:24]} Qc1 {[%emt 0:00:23] ...Qh1+ would be deadly.} 38. g3 {[%emt 0:00:04]} Qc5 {[%emt 0:00:04]} 39. Qe4 {[%emt 0:00:12]} Qb6 {[%emt 0:00:23]} 40. f5 $1 {[%emt 0:00:16]} exf5 {[%emt 0:00:08]} 41. gxf5 {[%emt 0:00:01]} gxf5 {[%emt 0:00:00]} 42. Qxf5 {[%emt 0:00:11][%cal Od3d4] Rxd4! would kill now.} Qg6 $4 {[%emt 0:00:06][%mdl 8192] [#]} (42... Qh6+ $11 43. Kg2 Qc6+ 44. Rf3 Qh6) 43. Bxf7+ $1 {[%emt 0:00:08][%mdl 576] Deflection} Qxf7 {[%emt 0:00:03]} 44. Qg5+ {[%emt 0:00:00] What a bad dream for Black.   Weighted Error Value: White=0.18 (very precise) /Black=0.32} 1-0

[Event "ChessKid Cup Div-I 2023"]
[Site "Online"]
[Date "2023.05.23"]
[Round "51.2"]
[White "Firouzja, Alireza"]
[Black "Nakamura, Hikaru"]
[Result "1-0"]
[ECO "C54"]
[WhiteElo "2785"]
[BlackElo "2775"]
[Annotator "TA"]
[PlyCount "117"]
[EventDate "2023.05.21"]
[EventType "k.o."]
[EventCountry "NET"]
[SourceTitle "playchess.com"]
[Source "ChessBase"]
[SourceQuality "1"]
[TimeControl "900+3"]

{[%evp 15,117,20,17,0,5,-7,16,16,8,3,3,0,15,-7,0,0,0,-10,-9,0,0,-2,0,-2,0,-9,0,0,32,10,15,0,0,-14,0,0,8,-60,-52,-57,33,31,14,32,31,31,31,20,87,92,87,92,90,96,93,90,90,97,117,79,150,129,147,83,91,82,71,71,71,70,81,38,4770,4770,29963,29964,29977,29968,29978,29971,29971,29972,29974,29975,29975,29973,29973,29974,29974,29975,29975,29976,29983,29976,29976,29977,29977,29976,29976,29977,29975,29975,29990,29991]} 1. e4 {[%emt 0:00:05]} e5 {[%emt 0:00:04]} 2. Nf3 {[%emt 0:00:01]} Nc6 {[%emt 0:00:01]} 3. Bc4 {[%emt 0:00:01]} Nf6 {[%emt 0:00:02]} 4. d3 {[%emt 0:00:01]} Bc5 {[%emt 0:00:01]} 5. c3 {[%emt 0:00:01]} d6 {[%emt 0:00:00]} 6. Nbd2 {[%emt 0:00:06]} a6 {[%emt 0:00:01]} 7. Bb3 {[%emt 0:00:26]} O-O {[%emt 0:00:31]} 8. h3 {[%emt 0:00:16]} Be6 {[%emt 0:00:09]} 9. Bc2 {[%emt 0:01:02] C54: Giuoco Piano: 4 c3 Nf6, main lines with 5 d4 and 5 d3.} d5 {[%emt 0:00:51]} 10. Ng5 $5 {[%emt 0:01:52][%mdl 4] An interesting side line.} Bc8 {[%emt 0:00:09]} (10... Nxe4 {is interesting.} 11. Ndxe4 dxe4 12. Qh5 h6) 11. exd5 {[%emt 0:01:30] The position is equal.} Qxd5 {[%emt 0:00:00] [#]} 12. Nde4 $146 {[%emt 0:00:08]} ({Predecessor:} 12. O-O Bf5 13. Nde4 Be7 14. Qf3 Qd7 15. b4 Rad8 16. Rd1 Nd5 17. d4 Bg6 18. dxe5 Nxe5 {0-1 So,W (2770)-Carlsen,M (2847) Carlsen Inv KO rapid 2021 (3.14)}) 12... Nxe4 {[%emt 0:00:20]} 13. Nxe4 {[%emt 0:00:02]} Be7 {[%emt 0:00:01]} 14. Qh5 {[%emt 0:00:46]} Be6 {[%emt 0:03:10]} 15. O-O {[%emt 0:00:43]} f5 {[%emt 0:00:38]} 16. Ng5 {[%emt 0:00:25]} Bxg5 $1 {[%emt 0:00:03]} 17. Bxg5 {[%emt 0:00:04]} Rae8 {[%emt 0:00:38]} 18. Rfe1 {[%emt 0:00:31]} Qd7 {[%emt 0:00:03]} 19. a4 {[%emt 0:00:31]} a5 {[%emt 0:02:40]} 20. Rad1 {[%emt 0:00:05]} Bf7 {[%emt 0:00:09]} 21. Qh4 {[%emt 0:00:11]} Re6 {[%emt 0:00:31]} 22. Bc1 {[%emt 0:00:33]} Rfe8 {[%emt 0:00:49]} 23. Re2 {[%emt 0:00:47]} h6 {[%emt 0:01:05]} 24. f3 {[%emt 0:01:09]} Qd6 {[%emt 0:00:53]} 25. Rde1 {[%emt 0:00:15]} Ne7 {[%emt 0:00:11]} 26. f4 {[%emt 0:02:08]} (26. d4 $11) 26... Ng6 $15 {[%emt 0:00:22][%csl LRf4,LRh4]} 27. fxe5 $1 {[%emt 0:00:05]} Rxe5 {[%emt 0:01:29]} (27... Nxh4 28. exd6 Rxe2 29. Rxe2 Rxe2 30. d7 $16) (27... Nxe5 $15 28. Qf2 Nxd3 29. Rxe6 Rxe6 30. Rxe6 Bxe6 31. Bxd3 Qxd3) 28. Qf2 $14 {[%emt 0:00:02]} Rxe2 {[%emt 0:00:09]} 29. Rxe2 {[%emt 0:00:01]} Rxe2 {[%emt 0:00:00]} 30. Qxe2 {[%emt 0:00:00]} c5 {[%emt 0:00:00]} 31. Qf2 {[%emt 0:00:12]} Be6 {[%emt 0:00:05]} (31... Qe6 $11 {keeps the balance.}) 32. Be3 $1 $16 {[%emt 0:00:11]} b6 {[%emt 0:00:18]} 33. d4 {[%emt 0:00:02]} cxd4 {[%emt 0:00:28]} 34. Bxd4 {[%emt 0:00:06]} Nf4 {[%emt 0:00:01]} 35. Bxb6 {[%emt 0:00:28]} Bd5 {[%emt 0:00:10]} 36. Bc5 {[%emt 0:01:08]} ({Of course not} 36. Bxa5 Bxg2 37. Qe3 (37. Bxf5 $2 {perishes.} Qe5 $19) 37... Bxh3 $11) 36... Qb8 {[%emt 0:00:29]} 37. Bxf5 {[%emt 0:00:10] Strongly threatening Bd4.} (37. Qd2 {is more complex.} Nxh3+ 38. Kh1 Bc6 39. Qd6) 37... Bxg2 {[%emt 0:00:04]} ({Better is} 37... Qe5) 38. Qe3 {[%emt 0:00:08]} Bc6 {[%emt 0:00:01][%cal Ob8b2] [#] Threatens to win with ...Qxb2!} 39. b4 {[%emt 0:00:24]} ({White should try} 39. b3 $1) 39... axb4 {[%emt 0:00:05]} 40. cxb4 {[%emt 0:00:01] aiming for b5.} Bxa4 {[%emt 0:00:04] [#]} 41. Bd4 $1 $36 {[%emt 0:00:08][%mdl 2048] Hoping for Qe7. White is on the roll.} Qd6 {[%emt 0:00:05][%cal Od6d4] Prevents Qe7. And now ...Qxd4! would win.} 42. Be5 {[%emt 0:00:08]} Qd1+ {[%emt 0:00:02]} 43. Kh2 {[%emt 0:00:00]} (43. Kf2 {keeps more tension.} g6 44. Bxf4 gxf5 45. Qe6+) 43... Bc6 $2 {[%emt 0:00:09][%mdl 8192] This move loses the game for Black.} 44. Bxf4 $18 {[%emt 0:00:08] Qe6+ would kill now. A strong pair of Bishops.} Qh1+ {[%emt 0:00:01]} 45. Kg3 {[%emt 0:00:00] White mates.} Qg2+ {[%emt 0:00:00]} 46. Kh4 {[%emt 0:00:01]} g5+ {[%emt 0:00:00] [#]} 47. Bxg5 $1 {[%emt 0:00:01]} hxg5+ {[%emt 0:00:06]} (47... Qxg5+ 48. Qxg5+) 48. Qxg5+ {[%emt 0:00:09]} Kf7 {[%emt 0:00:11]} 49. Qxg2 {[%emt 0:00:05]} Bxg2 {[%emt 0:00:00] KB-KB} 50. Kg5 {[%emt 0:00:00]} Bf1 {[%emt 0:00:01]} 51. h4 {[%emt 0:00:02][%cal Bh3h4,Bh4h5,Bh5h6,Bh6h7][%mdl 32]} Be2 {[%emt 0:00:01]} 52. h5 {[%emt 0:00:04]} Bf1 {[%emt 0:00:03]} 53. h6 {[%emt 0:00:01]} Bb5 {[%emt 0:00:02]} 54. Kf4 {[%emt 0:00:08]} Kf6 {[%emt 0:00:00]} 55. h7 {[%emt 0:00:02]} Kg7 {[%emt 0:00:02]} 56. Ke5 {[%emt 0:00:01]} Bf1 {[%emt 0:00:02]} 57. Kd4 {[%emt 0:00:02]} Bb5 {[%emt 0:00:01]} 58. Kc5 {[%emt 0:00:06]} Bd7 {[%emt 0:00:04]} 59. Bxd7 {[%emt 0:00:03] Weighted Error Value: White=0.11 (very precise) /Black=0.24 (precise)} 1-0

[Event "ChessKid Cup Div-I 2023"]
[Site "Online"]
[Date "2023.05.23"]
[Round "51.2"]
[White "Shimanov, Aleksandr"]
[Black "Moussard, Jules"]
[Result "0-1"]
[ECO "B23"]
[WhiteElo "2581"]
[BlackElo "2644"]
[Annotator "TA"]
[PlyCount "120"]
[EventDate "2023.05.21"]
[EventType "k.o."]
[EventCountry "NET"]
[SourceTitle "playchess.com"]
[Source "ChessBase"]
[SourceQuality "1"]
[TimeControl "900+3"]

{[%evp 9,120,0,13,14,0,0,20,0,8,8,7,0,0,0,7,0,43,19,25,37,23,27,42,34,59,61,70,22,26,0,-20,-10,32,-12,0,0,0,0,0,0,0,0,0,-35,0,0,0,-44,-11,-8,-8,-8,0,-35,0,-106,-104,-97,-91,-138,-113,-107,-94,-101,-89,-94,-35,-82,-81,-152,-115,-111,-91,-155,-152,-275,0,-83,0,-165,-152,-221,-215,-228,-222,-207,-196,-265,-270,-268,-211,-248,-259,-242,0,-220,-235,-231,-227,-241,-200,-233,0,-310,-274,-405,-430,-531,-529,-667,-658,-1420,-1326]} 1. e4 {[%emt 0:00:06]} c5 {[%emt 0:00:05]} 2. Nc3 {[%emt 0:00:01]} d6 {[%emt 0:00:05]} 3. Bb5+ {[%emt 0:00:02]} Bd7 {[%emt 0:00:09]} 4. Bxd7+ {[%emt 0:00:02]} Qxd7 {[%emt 0:00:17]} 5. d4 {[%emt 0:00:02]} cxd4 {[%emt 0:00:02]} 6. Qxd4 {[%emt 0:00:00] B23: Closed Sicilian: Lines without g3.} Nc6 {[%emt 0:00:10]} 7. Qd3 {[%emt 0:00:01]} g6 {[%emt 0:00:24]} 8. Nf3 {[%emt 0:00:01] The position is equal.} Bg7 {[%emt 0:00:01]} 9. O-O {[%emt 0:00:01]} Nf6 {[%emt 0:00:29]} 10. Nd5 {[%emt 0:00:01]} O-O {[%emt 0:00:26]} 11. Bg5 {[%emt 0:00:03]} Ne8 {[%emt 0:00:30]} 12. Rad1 {[%emt 0:00:25]} h6 {[%emt 0:00:23] [#]} 13. Bf4 $146 {[%emt 0:01:43]} (13. Bh4 {seems wilder.} Bxb2 14. e5 Nc7 15. Nxe7+ Nxe7 16. Qb3) ({Predecessor:} 13. Bh4 e6 14. Nc3 Rc8 15. Bg3 Na5 16. Nd2 Qc6 17. Qe3 b6 18. e5 dxe5 19. Bxe5 {½-½ Guseinov,G (2661)-Svidler,P (2683) Chess.com Rapid Wk2 Swiss 2022 (6)}) 13... Rd8 {[%emt 0:01:55]} 14. c4 {[%emt 0:00:22]} e6 {[%emt 0:02:01]} 15. Nc3 {[%emt 0:00:06]} Qe7 {[%emt 0:01:06]} 16. h3 {[%emt 0:00:30]} a6 {[%emt 0:00:21]} 17. Rfe1 {[%emt 0:00:09]} Rc8 {[%emt 0:00:31]} 18. a3 {[%emt 0:01:33]} ({Much worse is} 18. Bxd6 Nxd6 19. Qxd6 Qxd6 20. Rxd6 Na5 $15) (18. Na4 $14) 18... Na5 {[%emt 0:00:28]} 19. c5 {[%emt 0:03:58]} ({Weaker is} 19. Bxd6 Qxd6 20. Qxd6 Nxd6 21. Rxd6 Nxc4 $19) (19. Nd2 {feels stronger.}) 19... Rxc5 $11 {[%emt 0:00:51]} 20. e5 {[%emt 0:00:03][%cal Re5d6]} dxe5 {[%emt 0:02:20]} 21. Bxe5 {[%emt 0:02:16]} Nc6 {[%emt 0:00:44]} 22. Bxg7 {[%emt 0:00:51]} Nxg7 {[%emt 0:00:00]} 23. b4 {[%emt 0:00:37]} Rd8 {[%emt 0:00:56]} 24. Qxd8+ {[%emt 0:00:53]} Nxd8 {[%emt 0:00:00]} 25. bxc5 {[%emt 0:00:01]} Nc6 {[%emt 0:00:14]} 26. Ne4 {[%emt 0:00:01][%cal Od1d7]} Ne8 {[%emt 0:00:34]} 27. Nd6 {[%emt 0:00:10]} Nf6 {[%emt 0:00:10]} 28. Nd4 {[%emt 0:01:20]} Nxd4 {[%emt 0:00:10]} 29. Rxd4 {[%emt 0:00:00]} Qc7 {[%emt 0:00:01]} 30. Rc1 {[%emt 0:00:15]} Nd5 {[%emt 0:00:07] Repels Rf4} 31. g3 {[%emt 0:00:10]} (31. Rdc4 $5 {[%cal Rc1b1]}) 31... Qc6 {[%emt 0:00:16]} 32. Ne4 {[%emt 0:00:31]} (32. Rdc4 $1 $11 {was the only way to keep the balance.}) 32... b6 $17 {[%emt 0:00:07]} 33. Rdc4 {[%emt 0:00:04]} Kg7 {[%emt 0:00:06]} 34. h4 {[%emt 0:00:06]} (34. cxb6 $142 Qxb6 35. a4) 34... bxc5 {[%emt 0:00:07]} 35. Nxc5 {[%emt 0:00:01]} Qb5 {[%emt 0:00:10]} 36. a4 {[%emt 0:00:04]} Qb6 {[%emt 0:00:10]} 37. Nd3 {[%emt 0:00:08]} Qb3 {[%emt 0:00:06]} (37... Qd6 $17 38. Rd4 Qa3) 38. Ne5 {[%emt 0:00:03]} (38. Nc5 $15 Qb6 39. Ne4) 38... Qb2 {[%emt 0:00:02]} 39. Nf3 {[%emt 0:00:05]} (39. Re1 $142) 39... Qe2 {[%emt 0:00:03] Black is more active.} 40. Nd4 {[%emt 0:00:02]} Qa2 {[%emt 0:00:03]} 41. Nc6 {[%emt 0:00:02] [#]} (41. Nf3 $142) 41... Nb6 $1 {[%emt 0:00:06][%csl LRa4,LRc4]} 42. Rf4 {[%emt 0:00:03] [#]} (42. Rd4 $17 {was worth a try.}) 42... Nd5 $2 {[%emt 0:00:05]} ({Less strong is} 42... Nxa4 43. Ne5 $16) (42... Qb2 $1 $19 {[%cal Rb2c1] and Black stays clearly on top.} 43. Rf1 Nd5) 43. Rfc4 {[%emt 0:00:07]} Nb6 {[%emt 0:00:01]} (43... Nf6 $17) 44. Rd4 $2 {[%emt 0:00:02] Prevents Qd2.} (44. Rf4 $1 $11 {and White stays safe.}) 44... Qb2 $19 {[%emt 0:00:12]} 45. Rcd1 {[%emt 0:00:08]} (45. Rdd1 $17) 45... Nd5 {[%emt 0:00:01] Strongly threatening ...Nc3.} 46. R4d2 {[%emt 0:00:05]} Qc3 {[%emt 0:00:04]} 47. Nd4 {[%emt 0:00:01]} Qb4 {[%emt 0:00:04]} 48. Rc2 {[%emt 0:00:06]} (48. Nc2 {keeps fighting.} Qxa4 49. Ra1) 48... Qxa4 {[%emt 0:00:03] Threatens to win with ...e5.} 49. Rdd2 {[%emt 0:00:01]} Qa5 {[%emt 0:00:05]} 50. Ra2 {[%emt 0:00:02]} Qc5 {[%emt 0:00:03]} 51. Rac2 {[%emt 0:00:01]} Qa5 {[%emt 0:00:00]} (51... Qa3 $19 {Hoping for ...a5.} 52. Kg2 a5) 52. Nf3 $2 {[%emt 0:00:01]} (52. Ra2 $1 $11 Qc7 53. Rac2) 52... Qa3 {[%emt 0:00:04]} 53. Kg2 {[%emt 0:00:01]} a5 {[%emt 0:00:02][%cal Ba6a5,Ba5a4,Ba4a3][%mdl 32]} 54. Ra2 {[%emt 0:00:01]} Qc3 {[%emt 0:00:02]} 55. Rac2 {[%emt 0:00:03]} Qa3 {[%emt 0:00:02]} ({Better is} 55... Qb3 $19 {aiming for ...a4.} 56. Rb2 Qc4) 56. Ne5 $2 {[%emt 0:00:01][%mdl 8192]} (56. Ra2 $11 {and White has nothing to worry.} Qc5 57. Ra1) 56... Qb4 {[%emt 0:00:06]} 57. Re2 {[%emt 0:00:08]} (57. Rb2 {might work better.} Qc3 58. Re2) 57... a4 {[%emt 0:00:04]} 58. Rc4 {[%emt 0:00:10] Black is clearly winning.} Qb7 {[%emt 0:00:04] ( -> ...Ne3+)} 59. Nf3 {[%emt 0:00:03]} a3 {[%emt 0:00:03] And now ...Qa6 would win.} 60. Ra4 {[%emt 0:00:03]} Nc3 {[%emt 0:00:02][%csl LRa4,LRe2] Weighted Error Value: White=0.55/Black=0.29 (precise)} 0-1